fUSD/lending_fUSD_20250123
["ID","MTS","AMOUNT","RATE_DAILY","PERIOD"]
[350060695,1737595852551,-215.24823034,0.00020371,2]
[350060696,1737595852561,-500.0,0.00020371,2]
[350060697,1737595852571,-500.0,0.00020371,2]
[350060698,1737595852582,-500.0,0.00020371,2]
[350060699,1737595852591,-500.0,0.00020371,2]
[350060700,1737595852601,-500.0,0.00020371,2]
[350060701,1737595852612,-500.0,0.00020371,2]
[350060702,1737595852624,-500.0,0.00020371,2]
[350060703,1737595852636,-841.53,0.00020371,2]
[350060704,1737595852645,-500.0,0.00020371,2]
[350060705,1737595852654,-502.834558,0.00020371,2]
[350060706,1737595852663,-500.0,0.00020371,2]
[350060707,1737595852673,-317.8104886,0.00020371,2]
[350060708,1737595852684,-500.0,0.00020371,2]
[350060709,1737595852694,-500.0,0.00020371,2]
[350060710,1737595852706,-500.0,0.00020371,2]
[350060711,1737595852716,-500.0,0.00020371,2]
[350060712,1737595852725,-447.3,0.00020372,2]
[350060713,1737595852735,-600.49,0.00020372,2]
[350060714,1737595852748,-383.74,0.00020372,2]
[350060715,1737595852758,-1003.24,0.00020444,2]
[350060716,1737595852769,-861.78,0.00020444,2]
[350060717,1737595852780,-1939.29,0.00020444,2]
[350060718,1737595852791,-889.88,0.00020444,2]
[350060719,1737595852800,-1279.48,0.00020444,2]
[350060720,1737595852810,-900.52,0.00020444,2]
[350060721,1737595852820,-848.51,0.00020444,2]
[350060722,1737595852831,-500.0,0.00020444,2]
[350060723,1737595852840,-500.0,0.00020444,2]
[350060724,1737595852850,-1788.03,0.00020444,2]
[350060725,1737595852860,-815.53,0.00020444,2]
[350060726,1737595852870,-500.0,0.00020444,2]
[350060727,1737595852881,-500.0,0.00020444,2]
[350060728,1737595852890,-1121.01,0.00020444,2]
[350060729,1737595852900,-500.0,0.00020444,2]
[350060730,1737595852911,-685.85,0.00020444,2]
[350060731,1737595852920,-500.0,0.00020444,2]
[350060732,1737595852933,-801.1,0.00020444,2]
[350060733,1737595852942,-780.8,0.00020444,2]
[350060734,1737595852952,-1007.99,0.00020444,2]
[350060735,1737595852961,-1386.99,0.00020444,2]
[350060736,1737595852971,-1342.95,0.00020444,2]
[350060737,1737595852981,-3050.06,0.00020444,2]
[350060738,1737595852991,-5460.79,0.00020444,2]
[350060739,1737595853000,-1128.69,0.00020444,2]
[350060740,1737595853010,-500.0,0.00020445,2]
[350060741,1737595853019,-500.0,0.00020445,2]
[350060742,1737595853029,-197.902505,0.00020445,2]
[350060743,1737595853039,-500.0,0.00020445,2]
[350060744,1737595853049,-633.68,0.00020445,2]
[350060745,1737595853060,-500.0,0.00020445,2]
[350060746,1737595853069,-430.028585,0.00020445,2]
[350060747,1737595853079,-500.0,0.00020445,2]
[350060748,1737595853088,-539.85,0.00020445,2]
[350060749,1737595853097,-554.6,0.00020445,2]
[350060750,1737595853107,-500.0,0.00020445,2]
[350060751,1737595853116,-242.82834,0.00020445,2]
[350060752,1737595853126,-1222.41,0.00020445,2]
[350060753,1737595853135,-819.32,0.00020445,2]
[350060754,1737595853145,-338.083841,0.00020445,2]
[350060755,1737595853155,-1848.72,0.00020445,2]
[350060756,1737595853165,-1863.49,0.00020445,2]
[350060757,1737595853176,-500.0,0.00020445,2]
[350060758,1737595853185,-254.214363,0.00020445,2]
[350060759,1737595853195,-841.18,0.00020445,2]
[350060760,1737595853204,-2266.54,0.00020445,2]
[350060761,1737595853213,-150.182658,0.00020445,2]
[350060762,1737595853222,-500.0,0.00020445,2]
[350060763,1737595853231,-1227.73,0.00020445,2]
[350060764,1737595853240,-161.583491,0.00020445,2]
[350060765,1737595853249,-193.265101,0.00020445,2]
[350060766,1737595853258,-1452.85,0.00020445,2]
[350060767,1737595853268,-2444.01,0.00020445,2]
[350060768,1737595853277,-1211.32,0.00020445,2]
[350060769,1737595853286,-372.7359666,0.00020521,2]
[350060770,1737595853295,-566.76,0.00020545,2]
[350060771,1737595853305,-907.78,0.00020545,2]
[350060772,1737595853314,-500.0,0.00020545,2]
[350060773,1737595853323,-500.0,0.00020545,2]
[350060774,1737595853332,-526.91,0.00020545,2]
[350060775,1737595853342,-1287.76,0.00020545,2]
[350060776,1737595853352,-980.19,0.00020545,2]
[350060777,1737595853361,-2385.14,0.00020545,2]
[350060778,1737595853371,-721.45,0.00020545,2]
[350060779,1737595853380,-500.0,0.00020545,2]
[350060780,1737595853390,-1113.17,0.00020545,2]
[350060781,1737595853400,-821.18,0.00020545,2]
[350060782,1737595853409,-832.11,0.00020545,2]
[350060783,1737595853419,-500.0,0.00020546,2]
[350060784,1737595853428,-500.0,0.00020546,2]
[350060785,1737595853438,-150.40433261,0.00020546,2]
[350060786,1737595853447,-500.0,0.00020546,2]
[350060787,1737595853457,-500.0,0.00020546,2]
[350060788,1737595853466,-500.0,0.00020546,2]
[350060789,1737595853476,-500.0,0.00020546,2]
[350060790,1737595853485,-500.0,0.00020546,2]
[350060791,1737595853494,-500.0,0.00020546,2]
[350060792,1737595853504,-500.0,0.00020546,2]
[350060793,1737595853513,-500.0,0.00020546,2]
[350060794,1737595853523,-500.0,0.00020546,2]
[350060795,1737595853532,-500.0,0.00020546,2]
[350060796,1737595853545,-500.0,0.00020546,2]
[350060797,1737595853555,-500.0,0.00020546,2]
[350060798,1737595853566,-500.0,0.00020546,2]
[350060799,1737595853575,-500.0,0.00020546,2]
[350060800,1737595853586,-500.0,0.00020546,2]
[350060801,1737595853595,-500.0,0.00020546,2]
[350060802,1737595853605,-500.0,0.00020546,2]
[350060803,1737595853615,-500.0,0.00020546,2]
[350060804,1737595853624,-808.71,0.00020546,2]
[350060805,1737595853633,-500.0,0.00020546,2]
[350060806,1737595853642,-706.8,0.00020546,2]
[350060807,1737595853651,-951.84,0.00020546,2]
[350060808,1737595853661,-500.0,0.00020546,2]
[350060809,1737595853670,-1000.0,0.00020546,2]
[350060810,1737595853681,-878.88,0.00020546,2]
[350060811,1737595853690,-500.0,0.00020546,2]
[350060812,1737595853701,-1522.12,0.00020546,2]
[350060813,1737595853712,-1602.72,0.00020546,2]
[350060814,1737595853722,-500.0,0.00020546,2]
[350060815,1737595853731,-500.0,0.00020546,2]
[350060816,1737595853742,-344.69,0.00020546,2]
[350060817,1737595853751,-500.0,0.00020546,2]
[350060818,1737595853761,-500.0,0.00020546,2]
[350060819,1737595853770,-500.0,0.00020546,2]
[350060820,1737595853781,-512.06,0.00020546,2]
[350060821,1737595853791,-500.0,0.00020546,2]
[350060822,1737595853802,-500.0,0.00020546,2]
[350060823,1737595853813,-500.0,0.00020546,2]
[350060824,1737595853822,-500.0,0.00020546,2]
[350060825,1737595853832,-500.0,0.00020546,2]
[350060826,1737595853841,-500.0,0.00020546,2]
[350060827,1737595853850,-500.0,0.00020546,2]
[350060828,1737595853860,-500.0,0.00020546,2]
[350060829,1737595853870,-500.0,0.00020546,2]
[350060830,1737595853880,-500.0,0.00020546,2]
[350060831,1737595853889,-500.0,0.00020546,2]
[350060832,1737595853899,-500.0,0.00020546,2]
[350060833,1737595853908,-500.0,0.00020546,2]
[350060834,1737595853918,-500.0,0.00020546,2]
[350060835,1737595853929,-500.0,0.00020546,2]
[350060836,1737595853938,-500.0,0.00020546,2]
[350060837,1737595853948,-500.0,0.00020546,2]
[350060838,1737595853957,-500.0,0.00020546,2]
[350060839,1737595853966,-526.46664265,0.00020546,2]
[350060840,1737595853976,-500.0,0.00020546,2]
[350060841,1737595853985,-500.0,0.00020546,2]
[350060842,1737595853995,-500.0,0.00020546,2]
[350060843,1737595854004,-500.0,0.00020546,2]
[350060844,1737595854014,-173.07828074,0.00020546,2]
[350060845,1737595854024,-500.0,0.00020547,2]
[350060846,1737595854033,-500.0,0.00020547,2]
[350060847,1737595854043,-1471.26,0.00020547,2]
[350060848,1737595854053,-761.2,0.00020547,2]
[350060849,1737595854063,-1633.77,0.00020547,2]
[350060850,1737595854072,-583.35,0.00020547,2]
[350060851,1737595854081,-500.0,0.00020547,2]
[350060852,1737595854090,-1235.82,0.00020547,2]
[350060853,1737595854099,-1049.16,0.00020547,2]
[350060854,1737595854109,-723.31,0.00020547,2]
[350060855,1737595854118,-1125.34,0.00020547,2]
[350060856,1737595854127,-2113.23,0.00020547,2]
[350060857,1737595854136,-500.0,0.00020547,2]
[350060858,1737595854145,-830.45,0.00020547,2]
[350060859,1737595854155,-1975.25,0.00020547,2]
[350060860,1737595854164,-500.0,0.00020547,2]
[350060861,1737595854175,-904.48,0.00020547,2]
[350060862,1737595854185,-500.0,0.00020547,2]
[350060863,1737595854194,-777.13,0.00020547,2]
[350060864,1737595854205,-769.9,0.00020547,2]
[350060865,1737595854216,-500.0,0.00020547,2]
[350060866,1737595854225,-2992.68,0.00020547,2]
[350060867,1737595854234,-1321.75,0.00020547,2]
[350060868,1737595854243,-500.0,0.00020547,2]
[350060869,1737595854253,-500.0,0.00020547,2]
[350060870,1737595854263,-500.0,0.00020547,2]
[350060871,1737595854274,-547.14,0.00020547,2]
[350060872,1737595854284,-500.0,0.00020547,2]
[350060873,1737595854295,-500.0,0.00020547,2]
[350060874,1737595854304,-500.0,0.00020547,2]
[350060875,1737595854314,-500.0,0.00020547,2]
[350060876,1737595854324,-1726.46,0.00020547,2]
[350060877,1737595854333,-500.0,0.00020547,2]
[350060878,1737595854342,-2540.05,0.00020547,2]
[350060879,1737595854352,-755.57,0.00020547,2]
[350060880,1737595854361,-500.0,0.00020645,2]
[350060881,1737595854371,-500.0,0.00020645,2]
[350060882,1737595854382,-500.0,0.00020645,2]
[350060883,1737595854391,-179.72226322,0.00020645,2]
[350060884,1737595854402,-500.0,0.00020645,2]
[350060885,1737595854413,-500.0,0.00020645,2]
[350060886,1737595854422,-500.0,0.00020645,2]
[350060887,1737595854433,-500.0,0.00020645,2]
[350060888,1737595854444,-500.0,0.00020645,2]
[350060889,1737595854454,-500.0,0.00020645,2]
[350060890,1737595854464,-500.0,0.00020645,2]
[350060891,1737595854475,-500.0,0.00020645,2]
[350060892,1737595854486,-514.25,0.00020645,2]
[350060893,1737595854496,-500.0,0.00020645,2]
[350060894,1737595854506,-500.0,0.00020645,2]
[350060895,1737595854516,-500.0,0.00020645,2]
[350060896,1737595854525,-500.0,0.00020645,2]
[350060897,1737595854535,-500.0,0.00020645,2]
[350060898,1737595854546,-500.0,0.00020645,2]
[350060899,1737595854556,-500.0,0.00020645,2]
[350060900,1737595854567,-500.0,0.00020645,2]
[350060901,1737595854576,-500.0,0.00020645,2]
[350060902,1737595854587,-500.0,0.00020645,2]
[350060903,1737595854600,-500.0,0.00020645,2]
[350060904,1737595854610,-500.0,0.00020645,2]
[350060905,1737595854620,-500.0,0.00020645,2]
[350060906,1737595854630,-500.0,0.00020645,2]
[350060907,1737595854640,-500.0,0.00020645,2]
[350060908,1737595854650,-500.0,0.00020645,2]
[350060909,1737595854660,-500.0,0.00020645,2]
[350060910,1737595854670,-500.0,0.00020645,2]
[350060911,1737595854680,-500.0,0.00020645,2]
[350060912,1737595854689,-556.2,0.00020645,2]
[350060913,1737595854702,-500.0,0.00020645,2]
[350060914,1737595854712,-500.0,0.00020645,2]
[350060915,1737595854722,-500.0,0.00020645,2]
[350060916,1737595854731,-500.0,0.00020645,2]
[350060917,1737595854740,-576.53,0.00020645,2]
[350060918,1737595854750,-500.0,0.00020645,2]
[350060919,1737595854759,-500.0,0.00020645,2]
[350060920,1737595854768,-500.0,0.00020645,2]
[350060921,1737595854777,-500.0,0.00020645,2]
[350060922,1737595854787,-500.0,0.00020645,2]
[350060923,1737595854795,-500.0,0.00020645,2]
[350060924,1737595854806,-242.79621349,0.00020645,2]
[350060925,1737595854815,-2856.19,0.00020645,2]
[350060926,1737595854825,-500.0,0.00020645,2]
[350060927,1737595854834,-500.0,0.00020645,2]
[350060928,1737595854844,-500.0,0.00020645,2]
[350060929,1737595854856,-500.0,0.00020645,2]
[350060930,1737595854868,-1280.53,0.00020645,2]
[350060931,1737595854878,-500.0,0.00020645,2]
[350060932,1737595854887,-500.0,0.00020645,2]
[350060933,1737595854898,-500.0,0.00020645,2]
[350060934,1737595854908,-500.0,0.00020645,2]
[350060935,1737595854917,-500.0,0.00020645,2]
[350060936,1737595854927,-500.0,0.00020645,2]
[350060937,1737595854936,-500.0,0.00020645,2]
[350060938,1737595854946,-730.22,0.00020645,2]
[350060939,1737595854955,-500.0,0.00020645,2]
[350060940,1737595854964,-1676.92,0.00020645,2]
[350060941,1737595854973,-500.0,0.00020645,2]
[350060942,1737595854984,-500.0,0.00020645,2]
[350060943,1737595854996,-500.0,0.00020645,2]
[350060944,1737595855005,-500.0,0.00020645,2]
[350060945,1737595855015,-500.0,0.00020645,2]
[350060946,1737595855024,-575.33,0.00020645,2]
[350060947,1737595855034,-500.0,0.00020645,2]
[350060948,1737595855043,-500.0,0.00020645,2]
[350060949,1737595855052,-500.0,0.00020645,2]
[350060950,1737595855061,-500.0,0.00020645,2]
[350060951,1737595855071,-500.0,0.00020645,2]
[350060952,1737595855080,-500.0,0.00020645,2]
[350060953,1737595855089,-500.0,0.00020645,2]
[350060954,1737595855098,-500.0,0.00020645,2]
[350060955,1737595855108,-500.0,0.00020645,2]
[350060956,1737595855120,-841.53,0.00020645,2]
[350060957,1737595855131,-500.0,0.00020645,2]
[350060958,1737595855141,-500.0,0.00020645,2]
[350060959,1737595855154,-500.0,0.00020645,2]
[350060960,1737595855163,-500.0,0.00020645,2]
[350060961,1737595855173,-500.0,0.00020645,2]
[350060962,1737595855183,-500.0,0.00020645,2]
[350060963,1737595855193,-1003.24,0.00020718,2]
[350060964,1737595855203,-861.78,0.00020718,2]
[350060965,1737595855212,-1939.29,0.00020718,2]
[350060966,1737595855223,-889.88,0.00020718,2]
[350060967,1737595855235,-1279.48,0.00020718,2]
[350060968,1737595855251,-900.52,0.00020718,2]
[350060969,1737595855261,-848.51,0.00020718,2]
[350060970,1737595855270,-500.0,0.00020718,2]
[350060971,1737595855279,-1788.03,0.00020718,2]
[350060972,1737595855291,-815.53,0.00020718,2]
[350060973,1737595855301,-500.0,0.00020718,2]
[350060974,1737595855310,-500.0,0.00020718,2]
[350060975,1737595855320,-1121.01,0.00020718,2]
[350060976,1737595855331,-500.0,0.00020718,2]
[350060977,1737595855341,-685.85,0.00020718,2]
[350060978,1737595855351,-500.0,0.00020718,2]
[350060979,1737595855360,-801.1,0.00020718,2]
[350060980,1737595855369,-780.8,0.00020718,2]
[350060981,1737595855379,-1007.99,0.00020718,2]
[350060982,1737595855389,-1386.99,0.00020718,2]
[350060983,1737595855399,-1342.95,0.00020718,2]
[350060984,1737595855408,-3050.06,0.00020718,2]
[350060985,1737595855418,-5460.79,0.00020718,2]
[350060986,1737595855428,-1128.69,0.00020718,2]
[350060987,1737595855437,-500.0,0.00020719,2]
[350060988,1737595855447,-500.0,0.00020719,2]
[350060989,1737595855456,-197.902505,0.00020719,2]
[350060990,1737595855466,-500.0,0.00020719,2]
[350060991,1737595855475,-633.68,0.00020719,2]
[350060992,1737595855484,-430.028585,0.00020719,2]
[350060993,1737595855493,-500.0,0.00020719,2]
[350060994,1737595855503,-539.85,0.00020719,2]
[350060995,1737595855512,-554.6,0.00020719,2]
[350060996,1737595855522,-500.0,0.00020719,2]
[350060997,1737595855531,-242.82834,0.00020719,2]
[350060998,1737595855540,-1222.41,0.00020719,2]
[350060999,1737595855550,-819.32,0.00020719,2]
[350061000,1737595855559,-338.083841,0.00020719,2]
[350061001,1737595855568,-1848.72,0.00020719,2]
[350061002,1737595855577,-1863.49,0.00020719,2]
[350061003,1737595855587,-500.0,0.00020719,2]
[350061004,1737595855729,-254.214363,0.00020719,2]
[350061005,1737595855739,-841.18,0.00020719,2]
[350061006,1737595855749,-2266.54,0.00020719,2]
[350061007,1737595855758,-150.182658,0.00020719,2]
[350061008,1737595855767,-500.0,0.00020719,2]
[350061009,1737595855777,-1227.73,0.00020719,2]
[350061010,1737595855789,-193.265101,0.00020719,2]
[350061011,1737595855799,-1452.85,0.00020719,2]
[350061012,1737595855808,-2444.01,0.00020719,2]
[350061013,1737595855817,-1211.32,0.00020719,2]
[350061014,1737595855826,-500.0,0.0002074,2]
[350061015,1737595855836,-200.0,0.00020785,2]
[350061016,1737595855850,-77001.82392893,0.00020788,2]
[350061017,1737595855860,-77001.82392893,0.00020791,2]
[350061018,1737595855871,-200.0,0.00020797,2]
[350061019,1737595855882,-200.0,0.00020799,2]
[350061020,1737595855892,-10337.85071489,0.00020803,2]
[350061021,1737595855903,-10337.85071489,0.00020807,2]
[350061022,1737595855913,-200.0,0.00020809,2]
[350061023,1737595855925,-3430.2604288,0.00020816,2]
[350061024,1737595855937,-264.29020018,0.00020817,2]
[350061025,1737595855952,-264.29020018,0.00020818,2]
[350061026,1737595855962,-566.76,0.00020819,2]
[350061027,1737595855971,-907.78,0.00020819,2]
[350061028,1737595855981,-500.0,0.00020819,2]
[350061029,1737595855990,-526.91,0.00020819,2]
[350061030,1737595855999,-1287.76,0.00020819,2]
[350061031,1737595856008,-980.19,0.00020819,2]
[350061032,1737595856018,-2385.14,0.00020819,2]
[350061033,1737595856027,-721.45,0.00020819,2]
[350061034,1737595856037,-500.0,0.00020819,2]
[350061035,1737595856046,-1113.17,0.00020819,2]
[350061036,1737595856055,-821.18,0.00020819,2]
[350061037,1737595856065,-832.11,0.00020819,2]
[350061038,1737595856074,-500.0,0.0002082,2]
[350061039,1737595856084,-500.0,0.0002082,2]
[350061040,1737595856093,-500.0,0.0002082,2]
[350061041,1737595856103,-500.0,0.0002082,2]
[350061042,1737595856113,-500.0,0.0002082,2]
[350061043,1737595856123,-500.0,0.0002082,2]
[350061044,1737595856132,-327.4020845,0.0002082,2]
[350061045,1737595856141,-500.0,0.0002082,2]
[350061046,1737595856150,-500.0,0.0002082,2]
[350061047,1737595856159,-500.0,0.0002082,2]
[350061048,1737595856168,-193.57962761,0.0002082,2]
[350061049,1737595856178,-500.0,0.0002082,2]
[350061050,1737595856187,-500.0,0.0002082,2]
[350061051,1737595856196,-500.0,0.0002082,2]
[350061052,1737595856206,-500.0,0.0002082,2]
[350061053,1737595856215,-808.71,0.0002082,2]
[350061054,1737595856224,-500.0,0.0002082,2]
[350061055,1737595856233,-706.8,0.0002082,2]
[350061056,1737595856242,-951.84,0.0002082,2]
[350061057,1737595856252,-500.0,0.0002082,2]
[350061058,1737595856261,-1000.0,0.0002082,2]
[350061059,1737595856270,-878.88,0.0002082,2]
[350061060,1737595856279,-500.0,0.0002082,2]
[350061061,1737595856289,-1522.12,0.0002082,2]
[350061062,1737595856298,-1602.72,0.0002082,2]
[350061063,1737595856307,-500.0,0.0002082,2]
[350061064,1737595856316,-500.0,0.0002082,2]
[350061065,1737595856326,-500.0,0.0002082,2]
[350061066,1737595856335,-500.0,0.0002082,2]
[350061067,1737595856344,-500.0,0.0002082,2]
[350061068,1737595856354,-500.0,0.0002082,2]
[350061069,1737595856363,-500.0,0.0002082,2]
[350061070,1737595856372,-500.0,0.0002082,2]
[350061071,1737595856382,-500.0,0.0002082,2]
[350061072,1737595856392,-268.22849662,0.0002082,2]
[350061073,1737595856401,-517.1690949,0.0002082,2]
[350061074,1737595856410,-251.41905559,0.0002082,2]
[350061075,1737595856419,-500.0,0.0002082,2]
[350061076,1737595856428,-500.0,0.0002082,2]
[350061077,1737595856438,-500.0,0.0002082,2]
[350061078,1737595856448,-500.0,0.0002082,2]
[350061079,1737595856458,-500.0,0.0002082,2]
[350061080,1737595856467,-500.0,0.0002082,2]
[350061081,1737595856478,-500.0,0.0002082,2]
[350061082,1737595856490,-500.0,0.0002082,2]
[350061083,1737595856501,-500.0,0.0002082,2]
[350061084,1737595856511,-500.0,0.0002082,2]
[350061085,1737595856521,-500.0,0.0002082,2]
[350061086,1737595856531,-500.0,0.0002082,2]
[350061087,1737595856540,-529.70295626,0.0002082,2]
[350061088,1737595856552,-500.0,0.00020821,2]
[350061089,1737595856561,-1471.26,0.00020821,2]
[350061090,1737595856571,-761.2,0.00020821,2]
[350061091,1737595856580,-1633.77,0.00020821,2]
[350061092,1737595856590,-583.35,0.00020821,2]
[350061093,1737595856600,-500.0,0.00020821,2]
[350061094,1737595856610,-1235.82,0.00020821,2]
[350061095,1737595856620,-1049.16,0.00020821,2]
[350061096,1737595856629,-723.31,0.00020821,2]
[350061097,1737595856638,-1125.34,0.00020821,2]
[350061098,1737595856648,-2113.23,0.00020821,2]
[350061099,1737595856657,-500.0,0.00020821,2]
[350061100,1737595856667,-830.45,0.00020821,2]
[350061101,1737595856677,-1975.25,0.00020821,2]
[350061102,1737595856686,-500.0,0.00020821,2]
[350061103,1737595856696,-904.48,0.00020821,2]
[350061104,1737595856709,-500.0,0.00020821,2]
[350061105,1737595856721,-777.13,0.00020821,2]
[350061106,1737595856731,-769.9,0.00020821,2]
[350061107,1737595856740,-500.0,0.00020821,2]
[350061108,1737595856750,-2992.68,0.00020821,2]
[350061109,1737595856759,-1321.75,0.00020821,2]
[350061110,1737595856768,-500.0,0.00020821,2]
[350061111,1737595856778,-500.0,0.00020821,2]
[350061112,1737595856788,-500.0,0.00020821,2]
[350061113,1737595856798,-547.14,0.00020821,2]
[350061114,1737595856807,-500.0,0.00020821,2]
[350061115,1737595856817,-500.0,0.00020821,2]
[350061116,1737595856827,-500.0,0.00020821,2]
[350061117,1737595856836,-500.0,0.00020821,2]
[350061118,1737595856845,-1726.46,0.00020821,2]
[350061119,1737595856854,-500.0,0.00020821,2]
[350061120,1737595856864,-2540.05,0.00020821,2]
[350061121,1737595856873,-755.57,0.00020821,2]
[350061122,1737595856883,-10143.05557695,0.00020826,2]
[350061123,1737595856893,-10143.05557695,0.00020832,2]
[350061124,1737595856902,-264.29020018,0.00020832,2]
[350061125,1737595856911,-77001.82392893,0.00020839,2]
[350061126,1737595856920,-264.29020018,0.0002084,2]
[350061127,1737595856931,-3430.2604288,0.00020843,2]
[350061128,1737595856940,-264.29020018,0.00020846,2]
[350061129,1737595856950,-10143.05557695,0.00020848,2]
[350061130,1737595856960,-10143.05557695,0.0002085,2]
[350061131,1737595856970,-630.93000924,0.00020852,2]
[350061132,1737595856979,-200.0,0.00020854,2]
[350061133,1737595856988,-10143.05557695,0.00020859,2]
[350061134,1737595856998,-200.0,0.00020863,2]
[350061135,1737595857007,-200.0,0.00020864,2]
[350061136,1737595857016,-372.7359666,0.00020866,2]
[350061137,1737595857026,-77001.82392893,0.00020874,2]
[350061138,1737595857036,-200.0,0.00020876,2]
[350061139,1737595857045,-3430.2604288,0.00020879,2]
[350061140,1737595857054,-630.93000924,0.00020881,2]
[350061141,1737595857064,-630.93000924,0.00020888,2]
[350061142,1737595857074,-630.93000924,0.00020891,2]
[350061143,1737595857083,-3430.2604288,0.00020898,2]
[350061144,1737595857092,-3506.50842384,0.000209,2]
[350061145,1737595857101,-160.682,0.000209,2]
[350061146,1737595857111,-630.93000924,0.00020902,2]
[350061147,1737595857120,-77001.82392893,0.00020918,2]
[350061148,1737595857129,-322.38,0.00020919,2]
[350061149,1737595857138,-500.0,0.00020919,2]
[350061150,1737595857147,-549.01,0.00020919,2]
[350061151,1737595857156,-500.0,0.00020919,2]
[350061152,1737595857165,-566.71,0.00020919,2]
[350061153,1737595857174,-500.0,0.00020919,2]
[350061154,1737595857185,-500.0,0.00020919,2]
[350061155,1737595857194,-500.0,0.00020919,2]
[350061156,1737595857204,-500.0,0.00020919,2]
[350061157,1737595857213,-500.0,0.00020919,2]
[350061158,1737595857222,-500.0,0.00020919,2]
[350061159,1737595857231,-500.0,0.00020919,2]
[350061160,1737595857240,-500.0,0.00020919,2]
[350061161,1737595857250,-500.0,0.00020919,2]
[350061162,1737595857259,-500.0,0.00020919,2]
[350061163,1737595857268,-500.0,0.00020919,2]
[350061164,1737595857277,-521.84,0.00020919,2]
[350061165,1737595857287,-500.0,0.00020919,2]
[350061166,1737595857296,-500.0,0.00020919,2]
[350061167,1737595857305,-500.0,0.00020919,2]
[350061168,1737595857315,-500.0,0.00020919,2]
[350061169,1737595857324,-500.0,0.00020919,2]
[350061170,1737595857333,-500.0,0.00020919,2]
[350061171,1737595857342,-500.0,0.00020919,2]
[350061172,1737595857351,-349.95,0.00020919,2]
[350061173,1737595857360,-556.2,0.00020919,2]
[350061174,1737595857369,-500.0,0.00020919,2]
[350061175,1737595857379,-500.0,0.00020919,2]
[350061176,1737595857388,-576.53,0.00020919,2]
[350061177,1737595857398,-500.0,0.00020919,2]
[350061178,1737595857407,-500.0,0.00020919,2]
[350061179,1737595857417,-500.0,0.00020919,2]
[350061180,1737595857426,-500.0,0.00020919,2]
[350061181,1737595857436,-500.0,0.00020919,2]
[350061182,1737595857445,-2856.19,0.00020919,2]
[350061183,1737595857454,-500.0,0.00020919,2]
[350061184,1737595857464,-472.32254997,0.00020919,2]
[350061185,1737595857473,-500.0,0.00020919,2]
[350061186,1737595857482,-500.0,0.00020919,2]
[350061187,1737595857492,-500.0,0.00020919,2]
[350061188,1737595857501,-1280.53,0.00020919,2]
[350061189,1737595857510,-500.0,0.00020919,2]
[350061190,1737595857519,-500.0,0.00020919,2]
[350061191,1737595857529,-500.0,0.00020919,2]
[350061192,1737595857538,-500.0,0.00020919,2]
[350061193,1737595857546,-500.0,0.00020919,2]
[350061194,1737595857556,-500.0,0.00020919,2]